Cogmind - Beta 15 @@@ ROGUE MODE // 2025.05.14 @ 16:50:52 Player: Fleshy Vegetable Bird Result: Destroyed by G-47 Trooper with Particle Gun Performance ------------- Evolutions (2) 1000 Regions Visited (5) 1000 Robots Destroyed (22) 110 Value Destroyed (420) 420 Prototype IDs (0) 0 Alien Tech Used (0) 0 Bonus (249) 249 TOTAL SCORE: 2779 Bonus ------- Follower Combat Kills 74 Entered Garrisons 200 Friendly Fire -25 Cogmind --------- Core Integrity 0/550 Matter 246/300 Energy 99/100 System Corruption 0% Temperature Cool (9) Movement Core (50) Location -8/Garrison Parts ------- > --- POWER (1) -------- (None) > --- PROPULSION (3) --- (None) > --- UTILITY (4) ------ Advanced Weight Redist. System Armor Integrity Analyzer > --- WEAPON (3) ------- (None) > --- INVENTORY (5) ---- Large Storage Unit Huge Storage Unit System Shield Light Assault Rifle Peak State ------------ > --- POWER ------------ Light Ion Engine > --- PROPULSION ------- Light Treads Wheel Subdweller Monowheel > --- UTILITY ---------- Large Storage Unit Subdweller Optics Improved Terrain Scanner Improved Light Armor Plating > --- WEAPON ----------- Small Laser Assault Rifle Bore Cannon > --- INVENTORY -------- Light Treads Combat Airjet Large Storage Unit Huge Storage Unit Advanced Weight Redist. System Armor Integrity Analyzer Scrap Shield System Shield Heavy Assault Rifle Hammer Stasis Trap Stasis Trap Stasis Trap [Rating: 23] Favorites ----------- Power Light Ion Engine Engine Light Ion Engine Propulsion Wheel Treads Light Treads Wheel Wheel Hover Unit Combat Airjet Utility Large Storage Unit Device Improved Terrain Scanner Storage Large Storage Unit Processor Armor Integrity Analyzer Protection Improved Light Armor Plating Weapon Assault Rifle Energy Gun Small Laser Ballistic Gun Assault Rifle Ballistic Cannon Bore Cannon Impact Weapon Hammer Build | -11 -10 -10 -10 -8 -8 ------- Run | Yrd Mat Min Sub Mat Gar Slots Evolved 4 | . . . . 4 . Power . | . . . . . . Propulsion 1 | . . . . 1 . Utility 2 | . . . . 2 . Weapon 1 | . . . . 1 . Parts Attached 30 | 7 2 2 3 15 1 Power 3 | 1 . 1 . 1 . Engine 3 | 1 . 1 . 1 . Core . | . . . . . . Reactor . | . . . . . . Propulsion 10 | 2 . . 2 6 . Treads 2 | . . . . 2 . Leg . | . . . . . . Wheel 7 | 2 . . 2 3 . Hover 1 | . . . . 1 . Flight . | . . . . . . Utility 8 | 2 1 . . 4 1 Device 3 | 1 . . . 2 . Storage 2 | 1 1 . . . . Processor 1 | . . . . . 1 Hackware . | . . . . . . Protection 2 | . . . . 2 . Artifact . | . . . . . . Weapon 9 | 2 1 1 1 4 . Energy Gun 1 | 1 . . . . . Energy Cannon . | . . . . . . Ballistic Gun 6 | 1 . 1 . 4 . Ballistic Cannon 1 | . . . 1 . . Launcher . | . . . . . . Special Weapon . | . . . . . . Impact Weapon 1 | . 1 . . . . Slashing Weapon . | . . . . . . Piercing Weapon . | . . . . . . Special Melee Weapon . | . . . . . . Unidentified Prototypes . | . . . . . . Parts Lost 23 | . . 1 3 19 . Power 3 | . . 1 . 2 . Propulsion 9 | . . . 2 7 . Utility 4 | . . . . 4 . Weapon 7 | . . . 1 6 . Highest Loss Streak 11 | . . 1 2 11 . To Critical Strikes . | . . . . . . Average Backups 7 | 2 3 6 9 9 4 Power . | . . . . . . Propulsion 1 | 1 1 2 2 2 . Utility 3 | . . 2 4 5 3 Weapon 1 | . 1 2 3 1 1 Tool/Special . | . . . . . . Unused Backups 4 | . . . . 1 3 Power . | . . . . . . Propulsion 1 | . . . . 1 . Utility 3 | . . . . . 3 Weapon . | . . . . . . Tool/Special . | . . . . . . Average Slot Usage (%) 78 | . 100 88 91 73 18 Engine 5 | . 14 3 14 5 . Treads 1 | . . . . 5 . Wheel 19 | . 28 28 22 13 . Device 12 | . 14 14 14 12 9 Storage 10 | . 14 14 14 9 . Protection 2 | . . . . 5 . Energy Gun 2 | . 9 . . 6 . Ballistic Gun 16 | . 14 28 11 10 . Ballistic Cannon 1 | . . . 4 3 . Impact Weapon 1 | . 4 . 9 1 . Peak Build Rating 23 | 9 9 11 14 23 8 Average Rating 11 | 4 9 8 11 16 7 On Entrance 7 | . 9 9 11 13 5 Naked Turns . | . . . . . . Heaviest Build 41 | 12 28 27 34 41 20 Greatest Support 40 | 20 20 20 20 40 12 Greatest Overweight (x) 6 | 1 1 1 3 3 6 Average Overweight (x) . | . . 1 1 1 . Largest Inventory Capacity 15 | 8 15 15 15 15 15 Average Capacity 13 | 7 8 15 15 15 5 Most Carried 15 | 5 6 13 15 15 4 Average Carried 9 | 2 3 8 13 12 4 Final Capacity 15 | 8 15 15 15 15 5 Final Carried 14 | 2 6 12 14 5 4 Class Distribution -------------------- 76% | Mutant 23% | Scavenger-Skirmisher Dominant Class ---------------- Mutant | -10/Materials Mutant | -10/Mines Mutant | -10/Subcaves Scavenger-Skirmisher | -8/Materials Mutant | -8/Garrison Resources | -11 -10 -10 -10 -8 -8 ----------- Run | Yrd Mat Min Sub Mat Gar Matter Collected 758 | 277 . 153 4 324 . Remotely . | . . . . . . Salvage Created 840 | 98 . 150 47 545 . Parts 48 | 6 . 9 4 29 . Haulers Intercepted 2 | . . . . 2 . Recyclers Shooed 3 | 2 . . . 1 . Parts Field Recycled . | . . . . . . Retrieved Matter . | . . . . . . Parts Self-Destructed . | . . . . . . Prevented . | . . . . . . Kills | -11 -10 -10 -10 -8 -8 ------- Run | Yrd Mat Min Sub Mat Gar Combat Hostiles Destroyed 12 | . . 3 1 8 . Melee 1 | . . . . 1 . Guns 8 | . . 3 . 5 . Cannons 2 | . . . 1 1 . Classes Destroyed 11 | 2 . 2 1 6 . Worker 3 | . . . . 3 . Tunneler 1 | 1 . . . . . Hauler 2 | . . . . 2 . Recycler 4 | 1 . 2 . 1 . Operator 1 | . . . . 1 . Swarmer 4 | . . 2 . 2 . Grunt 3 | . . . . 3 . Sentry 2 | . . . . 2 . Hunter 1 | . . . . 1 . Subdweller 1 | . . . 1 . . Assembled 1 | . . 1 . . . Best Kill Streak 4 | 1 . 2 1 4 . Combat Bots Only 3 | . . 1 1 3 . Max Kills in Single Turn 2 | 1 . 1 1 2 . Gunslinging . | . . . . . . Exploded . | . . . . . . Melee 1 | . . . . 1 . Uniques/NPCs Destroyed . | . . . . . . Combat | -11 -10 -10 -10 -8 -8 -------- Run | Yrd Mat Min Sub Mat Gar Hostile Shots Fired 271 | . . 51 12 207 1 Missed 58 | . . 16 3 39 . Hits 213 | . . 35 9 168 1 Projectile 213 | . . 35 9 168 1 AOE 1 | . . . 1 . . Critical Strikes 11 | . . . . 11 . Part Disruptions 1 | . . 1 . . . Damage Taken 3127 | . . 416 271 2423 17 Core 767 | . . 118 87 545 17 Absorbed by Shields . | . . . . . . Core Remaining (%) 59 | 100 . . 18 . . Volleys Fired 86 | 12 3 24 6 41 . Largest 3 | 2 2 2 2 3 . Hottest 108 | 60 60 40 68 108 . Shots Fired 176 | 24 6 43 10 93 . Gun 168 | 24 6 43 4 91 . Cannon 8 | . . . 6 2 . Launcher . | . . . . . . Special . | . . . . . . Kinetic 137 | 12 3 43 10 69 . Thermal 39 | 12 3 . . 24 . Explosive . | . . . . . . Electromagnetic . | . . . . . . Robot Hit Streak 12 | 4 3 5 2 12 . Robot Miss Streak 5 | 3 1 5 4 4 . Penetration Max . | . . . . . . Secondary Targets 2 | . . 1 . 1 . Max Gunslinging Chain 1 | . . 1 . 1 . Shots Hit Robots 114 | 12 4 21 4 73 . Core Hits 36 | 3 1 8 1 23 . Critical Kills 1 | . . . 1 . . Critical Parts Destroyed 3 | . . . 1 2 . Critical Strikes 4 | . . . 2 2 . Destroy 2 | . . . 2 . . Smash 2 | . . . . 2 . Melee Attacks 17 | . 1 1 . 15 . Impact 17 | . 1 1 . 15 . Slashing . | . . . . . . Piercing . | . . . . . . Sneak Attacks 1 | . . . . 1 . Combat Hostiles . | . . . . . . Follow-up Attacks . | . . . . . . Damage Inflicted 1567 | 144 50 242 100 1031 . Guns 1157 | 144 50 242 10 711 . Cannons 121 | . . . 90 31 . Explosions . | . . . . . . Melee 289 | . . . . 289 . Ramming . | . . . . . . Kinetic 1013 | 90 38 242 100 543 . Thermal 265 | 54 12 . . 199 . Explosive . | . . . . . . Electromagnetic . | . . . . . . Impact 289 | . . . . 289 . Slashing . | . . . . . . Piercing . | . . . . . . Highest Corruption . | . . . . . . Average Corruption . | . . . . . . Corruption Purged . | . . . . . . Corruption Blocked . | . . . . . . Overload Shots . | . . . . . . Overflow Damage 80 | . . . . 80 . Projectiles . | . . . . . . Explosions . | . . . . . . Melee 80 | . . . . 80 . Knockbacks 3 | . . . 1 2 . Impact 2 | . . . . 2 . Kinetic 1 | . . . 1 . . Secondary . | . . . . . . Self-Inflicted Damage . | . . . . . . Shots . | . . . . . . Rammed . | . . . . . . Targets Rammed . | . . . . . . Kicked . | . . . . . . Crushed . | . . . . . . Highest Temperature 343 | . 20 15 . 343 . Average Temperature 104 | . 20 15 . 112 . Received Heat Transfer 924 | . . 78 . 837 9 Siege Activations . | . . . . . . Martial Activations . | . . . . . . Shielding Activations . | . . . . . . Robots Disrupted . | . . . . . . Combat Hostiles . | . . . . . . Robots Corrupted 3 | . . . . 3 . Combat Hostiles 1 | . . . . 1 . Parts Fried 5 | . . . . 5 . Impact Corruptions 6 | . . . . 6 . Robots Melted . | . . . . . . Combat Hostiles . | . . . . . . Parts Melted . | . . . . . . Heat Transferred 600 | 125 25 . . 450 . Parts Sabotaged . | . . . . . . Parts Stolen . | . . . . . . Parts Stripped . | . . . . . . Power Chain Reactions . | . . . . . . Alert | -11 -10 -10 -10 -8 -8 ------- Run | Yrd Mat Min Sub Mat Gar Maximum Alert Level . | . . . . . . Low Security (%) 100 | 100 100 100 . 100 100 Level 1 . | . . . . . . Level 2 . | . . . . . . Level 3 . | . . . . . . Level 4 . | . . . . . . Level 5 . | . . . . . . High Security . | . . . . . . Max Security . | . . . . . . Peak Influence 85 | 5 1 79 . 85 27 Initial 27 | . . . . . 27 Average 16 | 1 . 19 . 17 27 Influence Increases 488 | 10 1 168 . 309 . Destroy 0b10 Robot/C 280 | . . 120 . 160 . Destroy 0b10 Robot/NC 55 | 10 . 10 . 35 . Destroy Leader 84 | . . 30 . 54 . Allied During Kill 7 | . . 7 . . . Trap Triggered on 0b10 20 | . . . . 20 . Successful Hack 8 | . . . . 8 . Destroy Structure 4 | . 1 1 . 2 . Lose Combat Pursuer 30 | . . . . 30 . Influence Decreases 461 | 10 1 132 36 267 15 Entered New Map 35 | . . . 20 . 15 Time Decay 271 | 10 1 102 16 142 . Lost Part 135 | . . 10 . 125 . Lost Ally 20 | . . 20 . . . Squads Dispatched 2 | . . . . 2 . Investigation . | . . . . . . Extermination . | . . . . . . Reinforcement 1 | . . . . 1 . Assault . | . . . . . . Garrison 1 | . . . . 1 . Intercept . | . . . . . . Searches Triggered . | . . . . . . Construction Impeded . | . . . . . . Haulers Reinforced . | . . . . . . Active Scanning Responses . | . . . . . . Cargo Convoy Interrupts . | . . . . . . Stealth | -11 -10 -10 -10 -8 -8 --------- Run | Yrd Mat Min Sub Mat Gar Distress Signals 1 | . . . . 1 . Communications Jammed . | . . . . . . Distress Signals . | . . . . . . Times Spotted 52 | . 1 25 11 13 2 Peak Tracking Total 14 | . 1 14 5 5 . Tactical Retreats 3 | . . 1 . 2 . Traps | -11 -10 -10 -10 -8 -8 ------- Run | Yrd Mat Min Sub Mat Gar Traps Triggered 5 | . . . 1 1 3 Indirectly . | . . . . . . Trap Hack Attempts . | . . . . . . Triggered . | . . . . . . Disarmed . | . . . . . . Reprogrammed . | . . . . . . Reused 2 | . . . . 2 . Traps Extracted . | . . . . . . Installed 2 | . . . . 2 . Triggered 2 | . . . . 2 . Most Traps Carried 3 | . . 3 3 3 . Machines | -11 -10 -10 -10 -8 -8 ---------- Run | Yrd Mat Min Sub Mat Gar Machines Disabled . | . . . . . . Max in Single Turn . | . . . . . . Machines Repaired . | . . . . . . Machines Dismantled . | . . . . . . Machines Sabotaged . | . . . . . . Overloaded Fab Kills . | . . . . . . Hacking | -11 -10 -10 -10 -8 -8 --------- Run | Yrd Mat Min Sub Mat Gar Machines Accessed 2 | . . . . 2 . Terminals 1 | . . . . 1 . Fabricators . | . . . . . . Repair Stations . | . . . . . . Recycling Units . | . . . . . . Scanalyzers . | . . . . . . Garrison Access 1 | . . . . 1 . Total Hacks 4 | . . . . 4 . Successful 2 | . . . . 2 . Failed 2 | . . . . 2 . Catastrophic . | . . . . . . Database Lockouts . | . . . . . . Manual 2 | . . . . 2 . Terminals 3 | . . . . 3 . Fabricators . | . . . . . . Repair Stations . | . . . . . . Recycling Units . | . . . . . . Scanalyzers . | . . . . . . Garrison Access 1 | . . . . 1 . Terminal Hacks . | . . . . . . Fabricator Hacks . | . . . . . . Repair Station Hacks . | . . . . . . Recycling Unit Hacks . | . . . . . . Scanalyzer . | . . . . . . Garrison Access Hacks 1 | . . . . 1 . Unlock Access 1 | . . . . 1 . Unauthorized Hacks 1 | . . . . 1 . Terminals 1 | . . . . 1 . Botnet 1 | . . . . 1 . Fabricators . | . . . . . . Repair Stations . | . . . . . . Recycling Units . | . . . . . . Scanalyzers . | . . . . . . Garrison Access . | . . . . . . Data Cores Recovered . | . . . . . . Used . | . . . . . . Hacking Detections 1 | . . . . 1 . Full Trace Events . | . . . . . . Feedback Events . | . . . . . . Feedback Blocked . | . . . . . . Robot Schematics Acquired . | . . . . . . Robots Built . | . . . . . . Authchips . | . . . . . . Time . | . . . . . . Total Robot Build Rating . | . . . . . . Part Schematics Acquired . | . . . . . . Parts Built . | . . . . . . Authchips . | . . . . . . Time . | . . . . . . Total Part Build Rating . | . . . . . . Parts Repaired . | . . . . . . Time . | . . . . . . Parts Recycled . | . . . . . . Recycled Matter . | . . . . . . Retrieved Matter . | . . . . . . Retrieved Components . | . . . . . . Parts Scanalyzed . | . . . . . . Part Schematics Acquired . | . . . . . . Parts Damaged . | . . . . . . Bothacking | -11 -10 -10 -10 -8 -8 ------------ Run | Yrd Mat Min Sub Mat Gar Used RIF Installer . | . . . . . . Robots Hacked . | . . . . . . Non-combat . | . . . . . . Combat . | . . . . . . Robot Hacks Applied . | . . . . . . Relay Couplers Released . | . . . . . . Fabnet Peak Effective % . | . . . . . . Robots Rewired . | . . . . . . Allies Hacked . | . . . . . . Hacks Repelled . | . . . . . . Allies | -11 -10 -10 -10 -8 -8 -------- Run | Yrd Mat Min Sub Mat Gar Total Allies 2 | . . 2 . . . Largest Group 2 | . . 2 . . . Highest-Rated Group 43 | . . 43 . . . Highest-Rated Ally 31 | . . 31 . . . Total Orders . | . . . . . . Ally Attacks 13 | . . 13 . . . Total Damage 187 | . . 187 . . . Kills 4 | . . 4 . . . Allies Corrupted . | . . . . . . Allies Melted . | . . . . . . Intel | -11 -10 -10 -10 -8 -8 ------- Run | Yrd Mat Min Sub Mat Gar Active Infowar (turns) 1141 | 2 91 566 104 378 . Optics 318 | . . . . 318 . Terrain 1120 | 2 91 566 104 357 . Robot Analysis Total . | . . . . . . Derelict Logs Recovered 2 | . . 1 1 . . Drone Launches . | . . . . . . Drone Recoveries . | . . . . . . Exploration | -11 -10 -10 -10 -8 -8 ------------- Run | Yrd Mat Min Sub Mat Gar Turns Passed 1496 | 89 91 566 104 518 128 Spaces Moved 900 | 43 75 393 70 205 114 Core 126 | 8 . . . 4 114 Treads 8 | . . . . 8 . Legs . | . . . . . . Wheels 758 | 35 75 393 70 185 . Hover 8 | . . . . 8 . Flight . | . . . . . . Fastest Speed 50 | 50 80 95 95 95 50 Average Speed 93 | 85 82 95 103 115 56 Slowest Speed 350 | 95 95 95 125 290 350 Overloaded Moves . | . . . . . . Propulsion Burnouts . | . . . . . . Robots Hopped . | . . . . . . Potential Cave-ins . | . . . . . . Cave-ins Triggered . | . . . . . . Exploration Rate (%) 24 | 5 20 78 7 19 15 Regions Visited 5 Branch Regions 2 Pre-discovered Areas . | . . . . . . Known Exits Taken 1 | . . . . 1 . Unknown Exits Taken 4 | 1 1 1 1 . . Scrap Searched 2 | . . 2 . . . Spaces Dug 2 | . 1 1 . . . Terrain Destroyed 8 | . 1 1 5 1 . Melee 2 | . 1 1 . . . Projectile 6 | . . . 5 1 . AOE . | . . . . . . Terrain Rammed . | . . . . . . Walls Destroyed . | . . . . . . Machines Disabled . | . . . . . . Actions | -11 -10 -10 -10 -8 -8 --------- Run | Yrd Mat Min Sub Mat Gar Total 1364 | 70 96 545 92 383 178 Wait 237 | . 10 116 10 84 17 Move 895 | 42 74 392 69 204 114 Hop . | . . . . . . Pick Up 39 | 9 5 8 3 14 . Fast Attach . | . . . . . . Attach 27 | 7 . 1 1 17 1 Detach . | . . . . . . Swap 6 | . 2 2 2 . . Drop 10 | . 1 1 1 6 1 Fire 86 | 12 3 24 6 41 . Melee 17 | . 1 1 . 15 . Ram . | . . . . . . Kick . | . . . . . . Crush . | . . . . . . Escape Stasis 45 | . . . . . 45 Rewire . | . . . . . . Trap 2 | . . . . 2 . Miscellaneous . | . . . . . . Route ------- -11/Scrapyard -10/Materials -10/Mines (discovered 2 exits: [*Mat] / [*Sub]) -10/Subcaves -8/Materials (discovered 2 exits: Fac / Gar) -8/Garrison History --------- Turn | Location | Event 20 | -11/Scrapyard | Discovered new exit (range 15) 90 | -11/Scrapyard | Entered Materials 163 | -10/Materials | Discovered new exit (range 10) 181 | -10/Materials | Entered Mines 182 | -10/Mines | Assembled infested the area 187 | -10/Mines | Assisted by a Guerilla fighting off Assembled 316 | -10/Mines | Build established: Mutant 417 | -10/Mines | Found a hidden stash of uninstalled traps 514 | -10/Mines | Learned Materials stockpile data 564 | -10/Mines | Discovered new exit (range 13) 744 | -10/Mines | Discovered new exit (range 3) 747 | -10/Mines | Entered Subcaves 748 | -10/Subcaves | Approached by a straggling Scientist 765 | -10/Subcaves | Learned location of 1 exit from Materials 801 | -10/Subcaves | Core integrity fell below 50% 824 | -10/Subcaves | Core integrity fell below 20% 827 | -10/Subcaves | Discovered new exit (range 11) 834 | -10/Subcaves | Ambushed by swarm of Subdwellers 845 | -10/Subcaves | Ambushed by Subdwellers from Twisted Machinery 848 | -10/Subcaves | Ambushed by Subdweller buried in earth 851 | -10/Subcaves | Entered Materials 851 | -8/Materials | Evolved 4 slots: Propulsion x1, Utility x2, Weapon x1 852 | -8/Materials | Identified exit to Factory 1145 | -8/Materials | Build established: Scavenger-Skirmisher 1230 | -8/Materials | Core integrity fell below 50% 1260 | -8/Materials | Lost 11 parts (1p4n3u3w) 1298 | -8/Materials | Garrison activated, responded to threat 1313 | -8/Materials | Core integrity fell below 20% 1324 | -8/Materials | Lost 3 parts (2n1w) 1368 | -8/Materials | Identified exit to Garrison 1369 | -8/Materials | Entered Garrison 1459 | -8/Garrison | Triggered checkpoint 1495 | -8/Garrison | Build established: Mutant 1497 | -8/Garrison | Destroyed by G-47 Trooper with Particle Gun Last Messages --------------- 01438_ Triggered Stasis Trap. 01438_ A bubble of rippling energy engulfs the area. 01438_ Field strength at 94. 01438_ Field strength at 88. 01439_ Field strength at 82. 01440_ Field strength at 76. 01441_ Field strength at 70. 01442_ Field strength at 64. 01443_ Field strength at 58. 01444_ Field strength at 52. 01445_ Field strength at 46. 01446_ Field strength at 40. 01447_ Field strength at 34. 01448_ Field strength at 28. 01449_ Field strength at 22. 01450_ Field strength at 16. 01451_ Field strength at 10. 01452_ Field strength at 4. 01453_ Stasis field depleted. Map ----- +----------------------------------------------------+ | ??????????????????????????????# "#??????????????? | | ??????????????????????????????# #"#??????????????? | | ??????????????????????????????# ###??????????????? | | ??????????????????????????????# #????????????????? | | ??????????????????????????????# #????????????????? | | ??????????????????????????????# #????????????????? | | ??????????????????????????????# #????????????????? | | ??????????#####???????????????" #????????????????? | | ??????????# #???????????????" #????????????????? | | ??????????# ###########?????" #????????????????? | | ??????????# ! #?????# #????????????????? | | ??????????# #?????# #????????????????? | | ??????????############ ####### #????????????????? | | ?????????????????????# #????????????????? | | ?????????????????????# #########????????????????? | | ?????????????????????# #????????????????????????? | | ?????????????????????# #????????????????????????? | | ?????????????????????# #????????????????????????? | | ?????????????????????# #????????????????????????? | | ?????????????????????# #????????????????????????? | | ?????????????????????# #????????????????????????? | | ?????????????????????# #????????????????????????? | | ?????????????????????#^ #????????????????????????? | | ?????????????????????# #???????#####""""## ????? | | ?????????????????????# ######## ???? | | ?????????????????????# @ ???? | | ?????????????????????# g g ???? | | ?????????????????????########### ## ##??????? | | ???????????????????????????????? #?????#???????? | | ????????????????????????????????? ????????????? | | ?????????????????????????????????? ??????????? | | ??????????????????????????????????? ????????? | | ??????????????????????????????????? ???????? | | ????????????????????????????????????# #???????? | | ????????????????????????????????????? #???????? | | ?????????????????????????????????????? ???????? | | ??????????????????????????????????????? ???????? | | ?????????????????????????????????????????????????? | | ?????????????????????????????????????????????????? | | ?????????????????????????????????????????????????? | | ?????????????????????????????????????????????????? | | ?????????????????????????????????????????????????? | | ?????????????????????????????????????????????????? | | ?????????????????????????????????????????????????? | | ?????????????????????????????????????????????????? | | ?????????????????????????????????????????????????? | | ?????????????????????????????????????????????????? | | ?????????????????????????????????????????????????? | | ?????????????????????????????????????????????????? | | ?????????????????????????????????????????????????? | +----------------------------------------------------+ Best States ------------- Heat Dissipation 31 Energy Generation 10 Energy Capacity 125 Matter Stores 300 Matter Capacity 300 Sight Range 21 Terrain Scan Range 16 Terrain Scan Density 10 Additional Mass Support 9 Armor Coverage 800 Evasion (%) 50 Armor Integrity Analysis 30 Recoil Reduction 2 Item Schematics ----------------- None Robot Schematics ------------------ None Fabricated ------------ Nothing Repaired ---------- Nothing Alien Tech Used ----------------- None Achievements -------------- None Challenges ------------ None Game ------ Seed SapperInterceptFragment Manual? 0 Play Time 00:19:33 Cumulative 327.1 hours Start 2025.05.14 @ 16:32:09 End 2025.05.14 @ 16:50:52 Sessions 1 Manual Loads 0 Difficulty Rogue Special Mode None Game No. 378 Rogue 378 Adventurer 0 Explorer 0 Win Type - Total 6 Types 3/1/1/1/0/0/0/0/0/0 Lore% 38 Gallery% 65 Achievement% 67 Wizard Run 0 Options --------- Layout 1 ASCII 0 Keyboard 0 Movement Numpad Keybinds 0 Fullscreen 1 Font 32/SmallcapsGlow Map View 50x35 Zoom Use 0% Tactical HUD 1 Map Filters NONE Filters NONE Steam 1 RUN: 328391a0-a5f2-4de0-a949-53bd9cca0099